bitfinex-derivatives/quotes_BTCF0:USTF0_20251202
["timestamp","ask_amount","ask_price","bid_price","bid_amount"]
[1764701342864,0.1300952,92024.0,92023.0,0.0108653]
[1764701343059,0.1300952,92024.0,92020.0,0.03873758]
[1764701343060,0.4908952,92024.0,92020.0,0.03873758]
[1764701343266,0.11923,92014.0,92012.0,0.03873758]
[1764701343567,0.11923,92014.0,92006.0,0.00027172]
[1764701343568,0.1706472,92007.0,92006.0,0.00027172]
[1764701344570,0.0406464,92007.0,92006.0,0.00084]
[1764701344867,0.11923,91975.0,91974.0,0.9995111]
[1764701345072,0.11931503,91975.0,91974.0,1.0622311]
[1764701345268,0.11931503,91975.0,91974.0,1.07612438]
[1764701345567,0.05853503,91975.0,91974.0,1.07612438]
[1764701345774,8.503e-05,91975.0,91974.0,1.17612438]
[1764701345970,0.05953503,91975.0,91974.0,1.07612438]
[1764701346161,0.00108503,91975.0,91974.0,1.49612438]
[1764701346870,0.00016309,91984.0,91974.0,1.49612438]
[1764701346871,0.00016309,91984.0,91983.0,0.13508]
[1764701347175,0.11923,91999.0,91998.0,0.0108682]
[1764701347556,0.11923,91999.0,91998.0,0.1350782]
[1764701347968,0.11923,91999.0,91998.0,0.0735882]
[1764701348167,0.11923,91999.0,91998.0,0.1350782]
[1764701348562,0.12123,91999.0,91998.0,0.0108682]
[1764701348762,0.12223,91999.0,91998.0,0.0108682]
[1764701348970,0.12223,91999.0,91998.0,0.0735882]
[1764701350463,0.12123,91999.0,91998.0,0.0735882]
[1764701350873,0.002,91999.0,91998.0,0.1350782]
[1764701351076,0.00016309,92008.0,92007.0,0.0108672]
[1764701351265,0.00016309,92008.0,92007.0,0.1350772]
[1764701352166,0.48003,92019.0,92018.0,0.1350759]
[1764701352370,0.15978,92026.0,92025.0,0.12421]
[1764701352767,0.11923,92025.0,92024.0,0.0108652]
[1764701352964,0.11923,92021.0,92020.0,0.06272]
[1764701353165,0.05845,92014.0,92013.0,0.12421]
[1764701353978,0.11923,92014.0,92013.0,0.0735865]
[1764701354465,0.3608,92024.0,92023.0,0.0735853]
[1764701354466,0.48003,92024.0,92023.0,0.0735853]
[1764701354659,0.48003,92024.0,92023.0,0.1350753]
[1764701354863,0.41925,92024.0,92023.0,0.1350753]
[1764701355876,0.48003,92024.0,92023.0,0.1350753]
[1764701356874,0.48203,92024.0,92023.0,0.1350753]
[1764701357075,0.48203,92024.0,92023.0,0.1360753]
[1764701357371,0.48003,92024.0,92023.0,0.1380753]
[1764701357586,0.11923,92024.0,92023.0,0.1380753]
[1764701358677,0.11923,92030.0,92029.0,0.1350746]
[1764701359067,0.15978,92030.0,92029.0,0.0735846]
[1764701359268,0.15978,92030.0,92029.0,0.0108646]
[1764701359976,0.11923,92024.0,92023.0,0.003]
[1764701360170,0.11923,92024.0,92023.0,0.002]
[1764701360372,0.11923,92012.0,92011.0,0.0110297]
[1764701360980,0.1300966,92012.0,92011.0,0.000163]
[1764701361280,0.11923,92012.0,92011.0,0.13781315]
[1764701361475,0.11923,92012.0,92011.0,0.124373]
[1764701362278,0.11923,92012.0,92011.0,0.13781178]
[1764701362682,0.12123,92012.0,92011.0,0.13781178]
[1764701363277,0.099,92020.0,92019.0,0.12421]
[1764701363473,0.15978,92020.0,92019.0,0.1350758]
[1764701364184,0.15978,92020.0,92019.0,0.0735858]
[1764701364687,0.15978,92020.0,92019.0,0.0755858]
[1764701364981,0.15978,92020.0,92019.0,0.0765858]
[1764701365375,0.15978,92020.0,92019.0,0.1380758]
[1764701365895,0.15978,92020.0,92019.0,0.0765858]
[1764701366098,0.15978,92020.0,92019.0,0.003]
[1764701367384,0.1300966,92012.0,92011.0,0.01360178]
[1764701367686,0.4908966,92012.0,92011.0,0.000163]
[1764701369084,0.4918966,92012.0,92011.0,0.000163]
[1764701369585,0.4908966,92012.0,92011.0,0.000163]
[1764701369786,0.4918966,92012.0,92011.0,0.000163]
[1764701370290,0.11923,91995.0,91994.0,0.4958787]
[1764701370581,0.11923,91995.0,91994.0,0.3716687]
[1764701370782,0.11923,91995.0,91994.0,0.01373129]
[1764701370984,0.11923,91995.0,91994.0,0.12421]
[1764701371187,0.11923,91995.0,91981.0,0.08900016]
[1764701371188,0.0108697,91987.0,91985.0,0.000163]
[1764701371480,0.0108697,91987.0,91985.0,3e-06]
[1764701371481,0.48003,91986.0,91985.0,3e-06]
[1764701371686,0.11923,91967.0,91966.0,0.07386384]
[1764701372186,0.11923,91967.0,91966.0,0.37194384]
[1764701372379,0.11923,91989.0,91988.0,0.1350794]
[1764701372682,0.10906,91995.0,91994.0,0.11117]
[1764701372898,0.10906,91995.0,91994.0,0.1220387]
[1764701373385,0.0001631,91998.0,91997.0,0.1265584]
[1764701373583,0.0001631,91998.0,91997.0,0.5065584]
[1764701373887,0.04055,92030.0,92009.0,0.010867]
[1764701374185,0.1111,92010.0,92009.0,0.485787]
[1764701374786,0.1111,92010.0,92009.0,0.47492]
[1764701374980,0.1111,92010.0,92000.0,0.29496982]
[1764701374981,0.1111,92005.0,92004.0,0.0660475]
[1764701375379,0.1111,92005.0,92004.0,0.0108675]
[1764701376077,0.1151,92005.0,92004.0,0.0108675]
[1764701376278,0.1111,92001.0,92000.0,0.011031]
[1764701376588,0.1111,92001.0,92000.0,0.066211]
[1764701376774,0.1111,92001.0,92000.0,0.0553431]
[1764701377191,0.1111,92001.0,92000.0,0.1142831]
[1764701377688,0.1121,92001.0,92000.0,0.1142831]
[1764701378090,0.1161,92001.0,92000.0,0.1142831]
[1764701380893,0.005,92001.0,92000.0,0.1142831]
[1764701381089,0.001,92001.0,92000.0,0.9376331]
[1764701381289,0.005,92001.0,92000.0,0.9376331]
[1764701381682,0.1112631,92019.0,92018.0,0.11412]
[1764701381884,0.1112631,92019.0,92018.0,0.1249859]
[1764701382679,0.0001631,92019.0,92018.0,0.1259859]
[1764701382885,0.0001631,92019.0,92018.0,0.4759859]
[1764701383198,0.0001631,92019.0,92018.0,0.1759859]
[1764701384192,0.0001631,92019.0,92018.0,0.1259859]
[1764701384784,0.0558531,92019.0,92018.0,0.1249859]
[1764701385094,0.0558531,92019.0,92018.0,0.1259859]
[1764701385690,0.0568531,92019.0,92018.0,0.1249859]
[1764701388486,0.0001631,92019.0,92018.0,0.5349859]
[1764701388694,0.0011631,92019.0,92018.0,0.5349859]
[1764701390486,0.03479,92040.0,92018.0,0.5349859]
[1764701390697,0.1111,92040.0,92039.0,0.1249834]
[1764701391000,0.1111,92040.0,92039.0,0.6310234]
[1764701391686,0.1111,92040.0,92039.0,0.62016]
[1764701391885,0.1111,92040.0,92039.0,0.62216]
[1764701393002,0.1111,92040.0,92039.0,0.63495436]
[1764701396902,0.1111,92040.0,92039.0,0.57601436]
[1764701397587,0.1111,92040.0,92039.0,0.63495436]
[1764701399597,0.1111,92040.0,92039.0,0.64581776]
[1764701400702,0.0002716,92046.0,92045.0,0.1249827]
[1764701400898,0.0002716,92046.0,92045.0,0.4857827]
[1764701401104,0.0002716,92046.0,92045.0,0.1249827]
[1764701401299,0.1113716,92046.0,92039.0,0.01479436]
[1764701401598,0.14589,92040.0,92039.0,0.12891436]
[1764701401788,0.14589,92040.0,92019.0,0.03873758]
[1764701401789,0.1219644,92031.0,92030.0,0.00016301]
[1764701401989,0.4827644,92031.0,92030.0,0.00016301]
[1764701403098,0.4827644,92031.0,92030.0,0.00316301]
[1764701403603,0.0108671,92008.0,92007.0,0.0108672]
[1764701403811,0.10305,92008.0,92007.0,0.53005075]
[1764701403998,0.10305,92008.0,92007.0,0.5168272]
[1764701405201,0.10305,92008.0,92007.0,0.52980889]
[1764701405995,0.10405,92008.0,92007.0,0.52980889]
[1764701407708,0.10405,92008.0,92007.0,0.57974889]
[1764701408208,0.10405,92008.0,91998.0,0.00016301]
[1764701408209,0.1139181,91999.0,91998.0,0.00016301]
[1764701408398,0.1139181,91999.0,91998.0,0.01335779]
[1764701408599,0.10305,91999.0,91998.0,0.01335779]
[1764701408909,0.04942,91999.0,91998.0,0.11498779]
[1764701409110,0.13528,92007.0,92006.0,0.10163]
[1764701409610,0.10705,91999.0,91998.0,0.11498779]
[1764701410004,0.10305,91999.0,91998.0,0.11498779]
[1764701410798,0.10305,91999.0,91998.0,0.06329779]
[1764701411200,0.10305,91999.0,91998.0,0.11498779]
[1764701411913,0.10805,91999.0,91998.0,0.11498779]
[1764701414007,0.10805,91999.0,91998.0,0.01335779]
[1764701415214,0.10805,91999.0,91998.0,0.11498779]
[1764701418812,0.10805,91999.0,91998.0,0.00016301]
[1764701419813,0.1189181,91999.0,91998.0,0.00016301]
[1764701420509,0.0108689,91993.0,91992.0,0.0108689]
[1764701420714,0.0108696,91991.0,91990.0,0.0108692]
[1764701420915,0.4747196,91991.0,91990.0,0.02425532]
[1764701421822,0.4787196,91991.0,91990.0,0.02425532]
[1764701422119,0.10305,91982.0,91981.0,0.00016301]
[1764701422312,0.46385,91982.0,91981.0,0.00016301]
[1764701422614,0.0108719,91970.0,91969.0,0.0108717]
[1764701422811,0.1139219,91967.0,91961.0,0.41648]
[1764701423007,0.10305,91967.0,91966.0,0.01114384]
[1764701423518,0.10305,91967.0,91966.0,0.00027184]
[1764701423917,0.10305,91967.0,91960.0,8.65e-05]
[1764701423918,0.1139226,91961.0,91960.0,8.65e-05]
[1764701424121,0.46385,91961.0,91960.0,0.0109593]
[1764701424418,0.10305,91961.0,91960.0,0.1125893]
[1764701424617,0.04942,91961.0,91960.0,0.1125893]
[1764701425019,0.003,91967.0,91966.0,0.010872]
[1764701425224,0.10605,91967.0,91966.0,0.112502]
[1764701425521,0.10305,91967.0,91966.0,0.112502]
[1764701425717,0.10305,91967.0,91966.0,0.010872]
[1764701426113,0.10405,91967.0,91966.0,0.010872]
[1764701426417,0.10405,91967.0,91966.0,0.060812]
[1764701427013,0.10405,91967.0,91966.0,0.112502]
[1764701427608,0.10305,91967.0,91966.0,0.117502]
[1764701428225,0.10305,91967.0,91966.0,0.112502]
[1764701428226,0.10405,91967.0,91966.0,0.112502]
[1764701428413,0.10405,91967.0,91966.0,0.113502]
[1764701428614,0.10405,91967.0,91966.0,0.061812]
[1764701428826,0.10305,91967.0,91966.0,0.066812]
[1764701429421,0.10305,91967.0,91966.0,0.016872]
[1764701429723,0.10305,91967.0,91966.0,0.006]
[1764701429724,0.1139219,91967.0,91966.0,0.006]
[1764701430325,0.1139226,91961.0,91960.0,8.65e-05]
[1764701430516,0.4747226,91961.0,91960.0,8.65e-05]
[1764701430722,0.10305,91961.0,91960.0,0.0500265]
[1764701430925,0.10305,91961.0,91960.0,0.1017165]
[1764701431627,0.10305,91961.0,91960.0,0.0010865]
[1764701431816,0.1139226,91961.0,91960.0,0.0010865]
[1764701432828,0.10305,91961.0,91960.0,0.0010865]
[1764701435233,0.39303,91962.0,91935.0,0.45574]
[1764701435234,0.09401,91936.0,91935.0,0.45574]
[1764701435531,0.4868,91936.0,91935.0,0.10784408]
[1764701435717,0.4868,91936.0,91935.0,0.01290408]
[1764701436032,0.4868,91936.0,91926.0,0.00027196]
[1764701436033,0.1048867,91927.0,91926.0,0.00027196]
[1764701436215,0.09401,91918.0,91917.0,0.0001631]
[1764701436421,0.0428694,91904.0,91903.0,0.09494]
[1764701436620,0.4868,91904.0,91903.0,0.1058195]
[1764701436928,0.4868,91904.0,91903.0,0.01331228]
[1764701437231,0.09401,91903.0,91902.0,0.0108796]
[1764701437534,0.09401,91903.0,91902.0,0.01283082]
[1764701437535,0.0941158,91903.0,91902.0,0.01283082]
[1764701437835,0.0941158,91903.0,91902.0,0.09494]
[1764701438128,0.0941158,91903.0,91902.0,0.10788072]
[1764701438522,0.0941158,91903.0,91902.0,0.11876032]
[1764701438820,0.0961158,91903.0,91902.0,0.01294072]
[1764701439021,0.0961158,91903.0,91897.0,0.0108801]
[1764701439022,0.09101,91898.0,91897.0,0.0108801]
[1764701439224,0.09101,91898.0,91897.0,0.1059001]
[1764701439529,0.04437,91898.0,91897.0,0.1059001]
[1764701439931,0.0031058,91903.0,91902.0,0.1058996]
[1764701440147,0.0011058,91903.0,91902.0,0.1058996]
[1764701440336,0.0061058,91903.0,91902.0,0.1068996]
[1764701440632,0.0961158,91903.0,91902.0,0.1068996]
[1764701440835,0.0911158,91903.0,91902.0,0.1058996]
[1764701441430,0.0971158,91903.0,91902.0,0.09602]
[1764701441629,0.0971158,91903.0,91902.0,0.04872]
[1764701441828,0.0971158,91903.0,91902.0,0.001]
[1764701442434,0.0971158,91903.0,91902.0,0.04872]
[1764701442831,0.0971158,91903.0,91902.0,0.001]
[1764701443028,0.0971158,91903.0,91902.0,0.09602]
[1764701443339,0.0061058,91903.0,91902.0,0.09602]
[1764701443933,0.0061058,91903.0,91902.0,0.47602]
[1764701444335,0.0971158,91903.0,91902.0,0.09602]
[1764701444730,0.0971158,91903.0,91902.0,0.0595996]
[1764701445039,0.0971158,91903.0,91902.0,0.1068996]
[1764701445237,0.0971158,91903.0,91902.0,0.001]
[1764701445539,0.0971158,91903.0,91902.0,0.09602]
[1764701446041,0.0971158,91903.0,91902.0,0.001]
[1764701446630,0.0971158,91903.0,91902.0,0.04872]
[1764701446932,0.0971158,91903.0,91902.0,0.001]
[1764701447441,0.0971158,91903.0,91902.0,0.09602]
[1764701448039,0.0504758,91903.0,91902.0,0.09602]
[1764701448345,0.0061058,91903.0,91902.0,0.09602]
[1764701448636,0.0971158,91903.0,91902.0,0.09602]
[1764701448829,0.0061058,91903.0,91902.0,0.09602]
[1764701449428,0.0504758,91903.0,91902.0,0.09602]
[1764701449830,0.0061058,91903.0,91902.0,0.09602]
[1764701450240,0.0504758,91903.0,91902.0,0.09602]
[1764701450636,0.0061058,91903.0,91902.0,0.09602]
[1764701450839,0.0061058,91903.0,91902.0,0.45602]
[1764701452635,0.0061058,91903.0,91902.0,0.18602]
[1764701453036,0.0061058,91903.0,91902.0,0.38602]
[1764701455237,0.00016319,91912.0,91911.0,0.1058986]
[1764701455443,0.00016319,91912.0,91911.0,1.0224586]
[1764701456243,0.00016319,91912.0,91911.0,1.0234586]
[1764701456541,0.00016319,91912.0,91911.0,1.0284586]
[1764701456736,0.0108759,91934.0,91926.0,0.1058968]
[1764701456933,0.123,91928.0,91927.0,0.09502]
[1764701457138,0.09101,91928.0,91927.0,0.09502]
[1764701457442,0.3608,91938.0,91934.0,0.0108758]
[1764701457443,0.11777,91935.0,91934.0,0.0108758]
[1764701457635,0.11777,91935.0,91934.0,0.1058958]
[1764701457837,0.11777,91935.0,91934.0,0.09502]
[1764701458143,1.61777,91935.0,91934.0,0.04772]
[1764701458533,1.61777,91935.0,91934.0,0.1058958]
[1764701459045,1.61777,91935.0,91934.0,0.09502]
[1764701459246,1.61877,91935.0,91934.0,0.006]
[1764701459445,1.61877,91935.0,91934.0,0.007]
[1764701460045,0.11877,91935.0,91934.0,0.007]
[1764701460550,1.61877,91935.0,91934.0,0.007]
[1764701460950,1.61877,91935.0,91934.0,0.05472]
[1764701461145,1.61877,91935.0,91934.0,0.10202]
[1764701461652,1.59201,91935.0,91934.0,0.10202]
[1764701461952,0.001,91935.0,91934.0,0.52202]
[1764701462438,0.001,91935.0,91934.0,0.28202]
[1764701462654,0.001,91935.0,91934.0,0.007]
[1764701462655,0.11877,91935.0,91934.0,0.007]
[1764701464651,0.09201,91935.0,91934.0,0.09373]
[1764701465256,0.11994,91935.0,91934.0,0.09373]
[1764701465553,0.09201,91935.0,91934.0,0.09373]
[1764701466143,0.001,91935.0,91934.0,0.09373]
[1764701466454,0.08819,91935.0,91934.0,0.09373]
[1764701466955,0.11612,91935.0,91934.0,0.09373]
[1764701468149,0.08819,91935.0,91934.0,0.09373]
[1764701470248,0.11612,91935.0,91934.0,0.09373]
[1764701470450,0.08819,91935.0,91934.0,0.09373]
[1764701470753,0.001,91935.0,91934.0,0.09373]
[1764701471058,0.001,91935.0,91934.0,0.50373]
[1764701471353,0.00016319,91944.0,91943.0,0.0976048]
[1764701471548,0.08735319,91944.0,91943.0,0.6740848]
[1764701471858,0.11528319,91944.0,91943.0,0.6040848]
[1764701472449,0.00016319,91944.0,91943.0,0.6040848]
[1764701472759,0.08735319,91944.0,91943.0,0.9840848]
[1764701472959,0.08835319,91944.0,91943.0,0.9900848]
[1764701473558,0.08835319,91944.0,91943.0,0.9890848]
[1764701474055,0.00116319,91944.0,91943.0,0.9890848]
[1764701474446,0.00216319,91944.0,91943.0,0.7840848]
[1764701474659,0.00716319,91944.0,91943.0,0.7840848]
[1764701474859,0.00716319,91944.0,91943.0,0.6040848]
[1764701475052,0.09435319,91944.0,91943.0,0.6040848]
[1764701475360,0.12228319,91944.0,91943.0,0.6040448]
[1764701475659,0.05103319,91944.0,91943.0,0.6040448]
[1764701476449,0.00716319,91944.0,91943.0,1.0040448]
[1764701476957,0.00580459,91944.0,91943.0,1.03297083]
[1764701477157,0.00580459,91944.0,91943.0,1.0040448]
[1764701477352,0.0016915,91944.0,91943.0,1.0040448]
[1764701477855,0.44826184,91966.0,91965.0,0.0976022]
[1764701478158,0.44826184,91966.0,91965.0,0.6040422]
[1764701478845,0.00027184,91966.0,91965.0,0.9240422]
[1764701479152,0.00027184,91966.0,91965.0,1.29967515]
[1764701480352,0.08746184,91966.0,91965.0,0.11243515]
[1764701480554,0.08746184,91966.0,91965.0,0.61883515]
[1764701480760,0.00027184,91966.0,91965.0,0.97683515]
[1764701481057,0.00427184,91966.0,91965.0,0.97683515]
[1764701482055,0.00427184,91966.0,91965.0,1.33763515]
[1764701482248,0.00427184,91966.0,91965.0,0.97763515]
[1764701482443,0.00427184,91966.0,91965.0,1.04763515]
[1764701482649,0.09146184,91966.0,91965.0,0.42713515]
[1764701482957,0.09146184,91966.0,91965.0,0.61679515]
[1764701483153,0.09146184,91966.0,91965.0,0.60592295]
[1764701483359,0.09146184,91966.0,91965.0,0.51919295]
[1764701484253,0.00427184,91966.0,91965.0,1.36672295]
[1764701484454,0.00427184,91966.0,91965.0,1.46672295]
[1764701484648,0.00427184,91966.0,91965.0,1.36672295]
[1764701485558,0.00427184,91966.0,91965.0,1.01672295]
[1764701486861,0.04814184,91966.0,91965.0,1.01672295]
[1764701487055,0.09146184,91966.0,91965.0,0.37363295]
[1764701487256,0.09146184,91966.0,91965.0,0.60588295]
[1764701487459,0.00427184,91966.0,91965.0,1.34668295]
[1764701489459,0.00016319,91975.0,91974.0,0.0976011]
[1764701489661,0.3608,92002.0,91974.0,1.21708]
[1764701489662,0.11512,91989.0,91974.0,1.21708]
[1764701489860,0.11512,91989.0,91988.0,0.04263]
[1764701490060,0.11512,91989.0,91988.0,0.54891]
[1764701490256,0.1259893,91989.0,91988.0,0.54891]
[1764701491053,0.0108698,91985.0,91979.0,0.0001631]
[1764701491254,0.11512,91980.0,91979.0,0.0001631]
[1764701491758,0.08719,91954.0,91953.0,0.122]
[1764701491959,0.02793,91960.0,91946.0,0.39953758]
[1764701491960,0.11512,91950.0,91946.0,0.3608]
[1764701492267,0.11512,91950.0,91949.0,0.51902094]
[1764701492567,0.11512,91950.0,91949.0,0.59307271]
[1764701492864,0.0001631,91959.0,91958.0,0.092903]
[1764701493050,0.0390131,91959.0,91958.0,0.092903]
[1764701493251,0.0798031,91959.0,91958.0,0.092903]
[1764701493463,0.0798031,91959.0,91958.0,0.599143]
[1764701494068,0.0390131,91959.0,91958.0,0.599143]
[1764701494477,0.0410131,91959.0,91958.0,0.599143]
[1764701495765,0.0420131,91959.0,91958.0,0.599143]
[1764701495971,0.0855031,91959.0,91958.0,0.37]
[1764701496158,0.010873,91958.0,91951.0,0.0108738]
[1764701496358,0.4054131,91959.0,91958.0,0.091623]
[1764701496658,0.3639631,91959.0,91958.0,0.947903]
[1764701497264,0.0031631,91959.0,91958.0,0.947903]
[1764701497968,0.0021631,91959.0,91958.0,0.947903]
[1764701498169,0.0031631,91959.0,91958.0,0.947903]
[1764701499161,0.08234,91958.0,91952.0,0.03873758]
[1764701499369,0.0932139,91950.0,91949.0,0.00010271]
[1764701499568,0.4540139,91950.0,91949.0,0.00010271]
[1764701500073,0.44314,91950.0,91949.0,0.08085271]
[1764701500369,0.44314,91950.0,91949.0,0.00010271]
[1764701500575,0.44514,91950.0,91949.0,0.00010271]
[1764701501071,0.44614,91950.0,91949.0,0.00010271]
[1764701502870,0.08234,91941.0,91940.0,0.0001631]
[1764701503082,0.08234,91941.0,91926.0,0.0126699]
[1764701503083,0.08234,91927.0,91926.0,0.0126699]
[1764701503268,0.44314,91927.0,91926.0,0.00027196]
[1764701503461,0.46702,91927.0,91926.0,0.00027196]
[1764701503977,0.46712645,91927.0,91926.0,0.00027196]
[1764701504170,0.46712645,91927.0,91917.0,0.0001631]
[1764701504171,0.0932177,91918.0,91917.0,0.0001631]
[1764701504471,0.4540177,91918.0,91917.0,0.0001631]
[1764701506071,0.44314,91918.0,91917.0,0.0917909]
[1764701506375,0.3608,91918.0,91917.0,0.0997909]
[1764701506966,0.08234,91896.0,91895.0,0.04153]
[1764701507174,0.08234,91888.0,91887.0,0.04153]
[1764701508174,0.08234,91888.0,91887.0,0.05405293]
[1764701508568,0.08234,91888.0,91887.0,0.09327293]
[1764701509786,0.08234,91888.0,91887.0,0.09427293]
[1764701509982,0.08334,91888.0,91887.0,0.09427293]
[1764701510279,0.001,91888.0,91887.0,0.09427293]
[1764701510586,0.001,91888.0,91887.0,0.44427293]
[1764701511773,0.3608,91901.0,91900.0,0.0916299]
[1764701511774,0.29817,91901.0,91900.0,0.0916299]
[1764701511975,0.0108782,91915.0,91904.0,0.0108793]
[1764701512185,0.0108782,91915.0,91900.0,1.24904]
[1764701512186,0.0108786,91911.0,91900.0,0.3608]
[1764701512379,0.38468,91920.0,91906.0,0.08075]
[1764701512579,0.0108777,91919.0,91910.0,0.0108787]
[1764701512781,0.0523284,91913.0,91912.0,0.04153]
[1764701512981,0.0932184,91913.0,91912.0,0.04153]
[1764701513175,0.08234,91913.0,91912.0,0.04153]
[1764701513578,0.0932183,91913.0,91912.0,0.04153]
[1764701513779,0.08234,91913.0,91912.0,0.0916284]
[1764701514177,0.00016319,91924.0,91916.0,0.010878]
[1764701514178,0.0108773,91922.0,91916.0,0.010878]
[1764701514573,0.04145,91917.0,91916.0,0.052408]
[1764701514774,0.08234,91913.0,91912.0,0.08675]
[1764701514985,0.08234,91913.0,91912.0,0.006]
[1764701515190,0.08234,91913.0,91912.0,0.04753]
[1764701515383,0.08234,91913.0,91912.0,0.04853]
[1764701515886,0.08334,91913.0,91912.0,0.04953]
[1764701516084,0.08334,91913.0,91912.0,0.04853]
[1764701516383,0.08734,91913.0,91912.0,0.04153]
[1764701516978,0.08334,91913.0,91912.0,0.08775]
[1764701517979,0.001,91913.0,91912.0,0.08775]
[1764701519088,0.001,91913.0,91912.0,0.0986284]
[1764701519495,0.001,91913.0,91912.0,0.06352]
[1764701520185,0.04245,91913.0,91912.0,0.0743984]
[1764701520380,0.001,91913.0,91912.0,0.4943984]
[1764701520574,0.00016319,91924.0,91923.0,0.06352]
[1764701520780,0.00016319,91924.0,91923.0,0.9518]
[1764701521175,0.00016319,91924.0,91923.0,0.5718]
[1764701521176,0.08250319,91924.0,91923.0,0.5718]
[1764701521380,0.08250319,91924.0,91923.0,0.7426771]
[1764701521687,0.08250319,91924.0,91905.0,0.10518319]
[1764701521688,0.0932192,91906.0,91905.0,0.10518319]
[1764701521880,0.3608,91916.0,91915.0,0.08075]
[1764701523187,0.3608,91916.0,91915.0,0.08475]
[1764701523493,0.42058,91916.0,91915.0,0.08475]
[1764701524586,0.42058,91916.0,91915.0,0.08575]
[1764701524988,0.3608,91916.0,91915.0,0.08575]
[1764701525590,0.00016319,91924.0,91915.0,0.08575]
[1764701525591,0.00016319,91924.0,91923.0,0.1324771]
[1764701525984,0.12047319,91924.0,91923.0,0.1216]
[1764701526389,0.12031,91918.0,91917.0,0.05898]
[1764701527594,0.12031,91916.0,91915.0,0.0118781]
[1764701527893,0.12031,91916.0,91915.0,0.0108781]
[1764701528791,0.12047319,91924.0,91923.0,0.1324771]
[1764701528987,0.01914,91920.0,91915.0,0.004]
[1764701529185,0.491988,91916.0,91915.0,0.004]
[1764701529385,0.651988,91916.0,91915.0,0.005]
[1764701529696,0.491988,91916.0,91915.0,0.005]
[1764701529996,0.131188,91916.0,91915.0,0.1226]
[1764701530197,0.131188,91916.0,91915.0,0.06398]
[1764701530400,0.131188,91916.0,91915.0,0.005]
[1764701531095,0.12031,91916.0,91915.0,0.1266]
[1764701531294,0.05978,91916.0,91915.0,0.1266]
[1764701532487,0.12031,91916.0,91915.0,0.1266]
[1764701532683,0.12031,91916.0,91905.0,0.00016319]
[1764701532684,0.1311891,91906.0,91905.0,0.00016319]
[1764701532890,0.1311905,91895.0,91894.0,0.1216]
[1764701533193,0.12031,91895.0,91894.0,0.1216]
[1764701533393,0.05978,91895.0,91894.0,0.1216]
[1764701533798,0.3608,91909.0,91898.0,0.01088]
[1764701534098,0.00016319,91904.0,91903.0,0.1216]
[1764701535497,0.00616319,91904.0,91903.0,0.1226]
[1764701535800,0.00616319,91904.0,91903.0,0.4826]
[1764701536104,0.00616319,91904.0,91903.0,0.52147782]
[1764701536402,0.06594319,91904.0,91903.0,0.1226]
[1764701537488,0.06594319,91904.0,91903.0,0.16147782]
[1764701537704,0.00616319,91904.0,91903.0,0.16147782]
[1764701538396,0.00616319,91904.0,91903.0,0.1226]
[1764701539104,0.05978,91923.0,91922.0,0.0108772]
[1764701539303,0.05978,91923.0,91922.0,0.1216]
[1764701539701,0.3608,91927.0,91922.0,0.1216]
[1764701540008,0.3608,91927.0,91926.0,0.1216]
[1764701540193,0.48111,91927.0,91926.0,0.1216]
[1764701540910,0.4919867,91927.0,91926.0,0.1216]
[1764701541204,0.4919867,91927.0,91926.0,0.1226]
[1764701541606,0.4919867,91927.0,91926.0,0.1246]
[1764701542211,0.4919867,91927.0,91926.0,0.1256]
[1764701543004,0.12031,91918.0,91917.0,0.00016319]
[1764701543206,0.5208,91918.0,91898.0,0.1216]
[1764701543415,0.11832,91899.0,91898.0,0.1216]
[1764701543799,0.05916,91894.0,91893.0,0.63084]
[1764701544104,0.0108804,91896.0,91895.0,0.1216]
[1764701544510,0.005,91899.0,91898.0,0.0108801]
[1764701544699,0.005,91899.0,91898.0,0.8832801]
[1764701544899,0.3608,91914.0,91904.0,0.1216]
[1764701545110,0.05916,91920.0,91919.0,0.05898]
[1764701545406,0.11832,91920.0,91919.0,0.1324776]
[1764701545711,0.11832,91928.0,91927.0,0.14418]
[1764701546905,0.3608,91933.0,91927.0,0.14418]
[1764701547106,0.41996,91933.0,91932.0,0.1216]
[1764701547614,0.05916,91933.0,91932.0,0.1216]
[1764701547806,0.11848319,91937.0,91936.0,0.1216]
[1764701548809,0.00016319,91937.0,91936.0,0.1216]
[1764701550309,0.00116319,91937.0,91936.0,0.1216]
[1764701550511,0.00316319,91937.0,91936.0,0.1216]
[1764701550909,0.00816319,91937.0,91936.0,0.1226]
[1764701551914,0.00816319,91937.0,91936.0,0.4926]
[1764701552104,0.4308329,91959.0,91958.0,0.1216]
[1764701552301,0.4899929,91959.0,91958.0,0.1216]
[1764701552912,0.4899929,91959.0,91958.0,0.13419176]
[1764701553317,0.4899929,91959.0,91958.0,0.1216]
[1764701553510,0.4899929,91959.0,91958.0,0.06198]
[1764701555909,0.47912,91959.0,91958.0,0.12302]
[1764701556114,0.3608,91959.0,91958.0,0.12302]
[1764701556315,0.3716729,91959.0,91958.0,0.12302]
[1764701556524,0.4780129,91959.0,91958.0,0.12302]
[1764701558324,0.4780129,91959.0,91958.0,0.003]
[1764701558916,0.46714,91959.0,91958.0,0.013873]
[1764701559115,0.46714,91959.0,91958.0,0.136093]
[1764701559310,0.46714,91959.0,91958.0,0.12522]
[1764701560321,0.62714,91959.0,91958.0,0.003]
[1764701563527,0.62714,91959.0,91958.0,0.013873]
[1764701563720,0.62714,91959.0,91958.0,0.136093]
[1764701564030,0.11748394,91966.0,91965.0,0.12222]
[1764701564631,0.1172124,91963.0,91962.0,0.0352]
[1764701564826,0.4780124,91963.0,91962.0,0.0352]
[1764701565018,0.4780124,91963.0,91962.0,0.09638]
[1764701565418,0.4780124,91963.0,91962.0,0.15742]
[1764701566931,0.4780124,91963.0,91962.0,0.16042]
[1764701569838,0.4780124,91963.0,91962.0,0.003]
[1764701570032,0.5180124,91963.0,91962.0,0.003]
[1764701573434,0.5180124,91963.0,91954.0,0.52062812]
[1764701573435,0.1172139,91950.0,91949.0,0.00016319]
[1764701573737,0.4780139,91950.0,91949.0,0.00016319]
[1764701574535,0.4780139,91950.0,91949.0,0.00116319]
[1764701574936,0.4780139,91950.0,91949.0,0.00516319]
[1764701575634,0.6380139,91950.0,91949.0,0.00516319]
[1764701575844,0.7680139,91950.0,91949.0,0.00516319]